Cogmind - Beta 14 @@@ ROGUE MODE // 2025.03.05 @ 22:43:24 Player: vilepis Result: Destroyed by S-10 Pest with Light Assault Rifle Performance ------------- Evolutions (1) 500 Regions Visited (2) 400 Robots Destroyed (10) 50 Value Destroyed (160) 160 Prototype IDs (2) 40 Alien Tech Used (0) 0 Bonus (0) 0 TOTAL SCORE: 1150 Bonus ------- None Cogmind --------- Core Integrity 0/400 Matter 293/300 Energy 99/100 System Corruption 0% Temperature Cool (0) Movement Core (50) Location -9/Materials Parts ------- > --- POWER (1) -------- (None) > --- PROPULSION (2) --- (None) > --- UTILITY (3) ------ Signal Interpreter > --- WEAPON (3) ------- (None) > --- INVENTORY (5) ---- Aluminum Leg Wheel Wheel EM Pulse Gun Peak State ------------ > --- POWER ------------ Light Ion Engine > --- PROPULSION ------- Wheel Wheel > --- UTILITY ---------- Sensor Array Signal Interpreter > --- WEAPON ----------- Small Laser Light Assault Rifle Improved Light Cannon > --- INVENTORY -------- Aluminum Leg Wheel Wheel EM Pulse Gun [Rating: 9] Favorites ----------- Power Light Ion Engine Engine Light Ion Engine Propulsion Wheel Wheel Wheel Utility Sensor Array Device Sensor Array Processor Signal Interpreter Weapon Light Assault Rifle Energy Gun Medium Laser Ballistic Gun Light Assault Rifle Ballistic Cannon Improved Light Cannon Build | -11 -10 -9 ------- Run | Yrd Mat Mat Slots Evolved 2 | . . 2 Power . | . . . Propulsion . | . . . Utility 1 | . . 1 Weapon 1 | . . 1 Parts Attached 13 | 6 5 2 Power 2 | 1 1 . Engine 2 | 1 1 . Core . | . . . Reactor . | . . . Propulsion 3 | 2 1 . Treads . | . . . Leg . | . . . Wheel 3 | 2 1 . Hover . | . . . Flight . | . . . Utility 3 | 1 2 . Device 2 | 1 1 . Storage . | . . . Processor 1 | . 1 . Hackware . | . . . Protection . | . . . Artifact . | . . . Weapon 5 | 2 1 2 Energy Gun 2 | 1 . 1 Energy Cannon . | . . . Ballistic Gun 2 | 1 1 . Ballistic Cannon 1 | . . 1 Launcher . | . . . Special Weapon . | . . . Impact Weapon . | . . . Slashing Weapon . | . . . Piercing Weapon . | . . . Special Melee Weapon . | . . . Unidentified Prototypes . | . . . Parts Lost 9 | . 3 6 Power 2 | . 1 1 Propulsion 3 | . 1 2 Utility 2 | . 1 1 Weapon 2 | . . 2 Highest Loss Streak 6 | . 3 6 To Critical Strikes . | . . . Average Slot Usage (%) 84 | . 89 59 Engine 11 | . 12 6 Wheel 23 | . 25 13 Device 12 | . 13 8 Processor 8 | . 7 11 Energy Gun 13 | . 14 11 Ballistic Gun 12 | . 14 6 Peak Build Rating 9 | 6 7 9 Average Rating 5 | 3 6 5 On Entrance 4 | . 6 7 Naked Turns . | . . . Heaviest Build 10 | 7 7 10 Greatest Support 20 | 20 20 20 Greatest Overweight (x) . | . . . Average Overweight (x) . | . . . Largest Inventory Capacity 5 | 5 5 5 Average Capacity 5 | 5 5 5 Most Carried 5 | 5 5 4 Average Carried 4 | 2 4 4 Final Capacity 5 | 5 5 5 Final Carried 5 | 5 5 4 Class Distribution -------------------- 52% | Mutant 47% | Scavenger-Mutant Dominant Class ---------------- Scavenger-Mutant | -10/Materials Scavenger-Mutant | -9/Materials Resources | -11 -10 -9 ----------- Run | Yrd Mat Mat Matter Collected 295 | 253 42 . Remotely . | . . . Salvage Created 230 | 50 180 . Parts 29 | 4 25 . Haulers Intercepted . | . . . Recyclers Shooed . | . . . Parts Field Recycled . | . . . Retrieved Matter . | . . . Parts Self-Destructed . | . . . Prevented . | . . . Kills | -11 -10 -9 ------- Run | Yrd Mat Mat Combat Hostiles Destroyed 8 | 1 7 . Guns 8 | 1 7 . Classes Destroyed 3 | 1 2 . Watcher 2 | . 2 . Swarmer 6 | . 6 . Grunt 2 | 1 1 . Best Kill Streak 8 | 1 8 . Combat Bots Only 7 | 1 7 . Max Kills in Single Turn 2 | 1 2 . Gunslinging . | . . . Exploded . | . . . Melee . | . . . Uniques/NPCs Destroyed . | . . . Combat | -11 -10 -9 -------- Run | Yrd Mat Mat Hostile Shots Fired 107 | 4 45 58 Missed 30 | 2 14 14 Damage Taken 972 | 21 300 651 Core 461 | 11 42 408 Absorbed by Shields . | . . . Core Remaining (%) 86 | 95 78 . Volleys Fired 32 | 3 20 9 Largest 3 | 2 2 3 Hottest 99 | 70 70 99 Shots Fired 51 | 6 31 14 Gun 50 | 6 31 13 Cannon 1 | . . 1 Launcher . | . . . Special . | . . . Kinetic 28 | 3 20 5 Thermal 23 | 3 11 9 Explosive . | . . . Electromagnetic . | . . . Robot Hit Streak 9 | 4 9 8 Robot Miss Streak 4 | 1 4 1 Penetration Max . | . . . Secondary Targets 1 | . 1 . Max Gunslinging Chain 1 | . 1 . Shots Hit Robots 35 | 4 19 12 Core Hits 16 | 2 13 1 Critical Kills . | . . . Critical Parts Destroyed . | . . . Critical Strikes . | . . . Melee Attacks . | . . . Impact . | . . . Slashing . | . . . Piercing . | . . . Sneak Attacks . | . . . Combat Hostiles . | . . . Follow-up Attacks . | . . . Damage Inflicted 401 | 49 196 156 Guns 356 | 49 196 111 Cannons 19 | . . 19 Explosions . | . . . Melee . | . . . Ramming 26 | . . 26 Kinetic 188 | 24 121 43 Thermal 187 | 25 75 87 Explosive . | . . . Electromagnetic . | . . . Impact . | . . . Slashing . | . . . Piercing . | . . . Highest Corruption 1 | . 1 . Average Corruption 1 | . 1 . Corruption Purged . | . . . Corruption Blocked . | . . . Effects 3 | . 3 . Message Errors 2 | . 2 . Matter Fused 1 | . 1 . Overload Shots . | . . . Overflow Damage . | . . . Projectiles . | . . . Explosions . | . . . Melee . | . . . Knockbacks . | . . . Impact . | . . . Kinetic . | . . . Secondary . | . . . Self-Inflicted Damage 12 | . . 12 Shots . | . . . Rammed 6 | . . 6 Targets Rammed 6 | . . 6 Kicked . | . . . Crushed . | . . . Highest Temperature 62 | 62 46 62 Average Temperature 26 | 31 19 33 Received Heat Transfer 156 | 12 12 132 Siege Activations . | . . . Robots Corrupted . | . . . Combat Hostiles . | . . . Parts Fried . | . . . Impact Corruptions . | . . . Robots Melted . | . . . Combat Hostiles . | . . . Parts Melted . | . . . Heat Transferred 496 | 74 222 200 Parts Sabotaged . | . . . Parts Stolen . | . . . Parts Stripped . | . . . Power Chain Reactions . | . . . Alert | -11 -10 -9 ------- Run | Yrd Mat Mat Peak Influence 172 | 20 172 87 Initial 72 | . 13 72 Average 104 | 3 143 63 Maximum Alert Level . | . . . Low Security (%) 100 | 100 100 100 Level 1 . | . . . Level 2 . | . . . Level 3 . | . . . Level 4 . | . . . Level 5 . | . . . High Security . | . . . Max Security . | . . . Squads Dispatched 1 | . 1 . Investigation . | . . . Extermination . | . . . Reinforcement 1 | . 1 . Assault . | . . . Garrison . | . . . Intercept . | . . . Searches Triggered . | . . . Construction Impeded . | . . . Haulers Reinforced . | . . . Active Scanning Responses . | . . . Cargo Convoy Interrupts . | . . . Stealth | -11 -10 -9 --------- Run | Yrd Mat Mat Distress Signals 2 | . 1 1 Communications Jammed . | . . . Distress Signals . | . . . Times Spotted 21 | 1 10 10 Peak Tracking Total 10 | 1 5 10 Tactical Retreats . | . . . Traps | -11 -10 -9 ------- Run | Yrd Mat Mat Traps Triggered 2 | . 2 . Indirectly . | . . . Trap Hack Attempts . | . . . Triggered . | . . . Disarmed . | . . . Reprogrammed . | . . . Reused . | . . . Traps Extracted . | . . . Installed . | . . . Triggered . | . . . Machines | -11 -10 -9 ---------- Run | Yrd Mat Mat Machines Disabled . | . . . Max in Single Turn . | . . . Machines Repaired . | . . . Machines Dismantled . | . . . Machines Sabotaged . | . . . Overloaded Fab Kills . | . . . Hacking | -11 -10 -9 --------- Run | Yrd Mat Mat Machines Accessed 4 | . 4 . Terminals 3 | . 3 . Fabricators . | . . . Repair Stations . | . . . Recycling Units 1 | . 1 . Scanalyzers . | . . . Garrison Access . | . . . Total Hacks 7 | . 7 . Successful 3 | . 3 . Failed 4 | . 4 . Catastrophic . | . . . Database Lockouts . | . . . Manual . | . . . Terminals 6 | . 6 . Fabricators . | . . . Repair Stations . | . . . Recycling Units 1 | . 1 . Scanalyzers . | . . . Garrison Access . | . . . Terminal Hacks 2 | . 2 . Prototype ID Bank 1 | . 1 . Dispatch Records 1 | . 1 . Fabricator Hacks . | . . . Repair Station Hacks . | . . . Recycling Unit Hacks 1 | . 1 . Retrieve Matter 1 | . 1 . Scanalyzer . | . . . Garrison Access Hacks . | . . . Unauthorized Hacks . | . . . Terminals . | . . . Fabricators . | . . . Repair Stations . | . . . Recycling Units . | . . . Scanalyzers . | . . . Garrison Access . | . . . Data Cores Recovered . | . . . Used . | . . . Hacking Detections 2 | . 2 . Full Trace Events . | . . . Feedback Events . | . . . Feedback Blocked . | . . . Robot Schematics Acquired . | . . . Robots Built . | . . . Authchips . | . . . Time . | . . . Total Robot Build Rating . | . . . Part Schematics Acquired . | . . . Parts Built . | . . . Authchips . | . . . Time . | . . . Total Part Build Rating . | . . . Parts Repaired . | . . . Time . | . . . Parts Recycled . | . . . Recycled Matter . | . . . Retrieved Matter . | . . . Retrieved Components . | . . . Parts Scanalyzed . | . . . Part Schematics Acquired . | . . . Parts Damaged . | . . . Bothacking | -11 -10 -9 ------------ Run | Yrd Mat Mat Used RIF Installer . | . . . Robots Hacked . | . . . Non-combat . | . . . Combat . | . . . Robot Hacks Applied . | . . . Relay Couplers Released . | . . . Fabnet Peak Effective % . | . . . Robots Rewired . | . . . Allies Hacked . | . . . Hacks Repelled . | . . . Allies | -11 -10 -9 -------- Run | Yrd Mat Mat Total Allies . | . . . Largest Group . | . . . Highest-Rated Group . | . . . Highest-Rated Ally . | . . . Total Orders . | . . . Ally Attacks . | . . . Total Damage . | . . . Kills . | . . . Allies Corrupted . | . . . Allies Melted . | . . . Intel | -11 -10 -9 ------- Run | Yrd Mat Mat Robot Analysis Total . | . . . Derelict Logs Recovered . | . . . Drone Launches . | . . . Drone Recoveries . | . . . Exploration | -11 -10 -9 ------------- Run | Yrd Mat Mat Turns Passed 380 | 78 255 47 Spaces Moved 312 | 74 217 21 Core 19 | 16 . 3 Treads . | . . . Legs . | . . . Wheels 293 | 58 217 18 Hover . | . . . Flight . | . . . Fastest Speed 50 | 50 80 50 Average Speed 78 | 73 80 75 Slowest Speed 80 | 80 80 80 Overloaded Moves . | . . . Propulsion Burnouts . | . . . Robots Hopped . | . . . Cave-ins Triggered . | . . . Exploration Rate (%) 16 | 5 39 6 Regions Visited 2 Branch Regions . Pre-discovered Areas . | . . . Known Exits Taken 1 | . 1 . Unknown Exits Taken 1 | 1 . . Scrap Searched . | . . . Spaces Dug . | . . . Terrain Destroyed . | . . . Melee . | . . . Projectile . | . . . AOE . | . . . Terrain Rammed . | . . . Walls Destroyed . | . . . Machines Disabled . | . . . Actions | -11 -10 -9 --------- Run | Yrd Mat Mat Total 397 | 88 270 39 Wait 26 | 1 24 1 Move 310 | 73 216 21 Hop . | . . . Pick Up 7 | 5 2 . Fast Attach 10 | 6 4 . Attach 1 | . . 1 Detach . | . . . Swap 2 | . 1 1 Drop 3 | . 3 . Fire 32 | 3 20 9 Melee . | . . . Ram 6 | . . 6 Kick . | . . . Crush . | . . . Escape Stasis . | . . . Rewire . | . . . Trap . | . . . Miscellaneous . | . . . Route ------- -11/Scrapyard -10/Materials (discovered 3 exits: *Mat x2 / *Min) -9/Materials History --------- Turn | Location | Event 2 | -11/Scrapyard | Met Revision 17 55 | -11/Scrapyard | Discovered new exit (range 8) 79 | -11/Scrapyard | Entered Materials 148 | -10/Materials | Discovered new exit (range 15) 153 | -10/Materials | Destroyed 7 combat bots 156 | -10/Materials | Lost 3 parts (1p1n1u) 232 | -10/Materials | Discovered new exit (range 8) 251 | -10/Materials | Discovered new exit (range 11) 259 | -10/Materials | Identified exit to Materials 275 | -10/Materials | Identified exit to Mines 334 | -10/Materials | Entered another Materials area 334 | -9/Materials | Evolved 2 slots: Utility x1, Weapon x1 376 | -9/Materials | Core integrity fell below 50% 380 | -9/Materials | Core integrity fell below 20% 381 | -9/Materials | Destroyed by S-10 Pest with Light Assault Rifle Last Messages --------------- PARAMETERS=UTILITY+1,WEAPON+1 LOCATION=MATERIALS GOAL=ESCAPE 00345_ Acquired Imp. Light Cannon. 00355_ Imp. Light Cannon severed. 00362_ Wheel destroyed. 00362_ W-16 Scout sends out distress signal. 00362_ Lgt. Assault Rifle destroyed. 00365_ Wheel destroyed. 00366_ Lgt. Ion Engine destroyed. 00372_ Sensor Array destroyed. 00373_ Sml. Laser destroyed. 00374_ Slammed into L-31 Rogue. Ramming works as a last resort when unarmed or blocked, but can have serious negative consequences. 00375_ Slammed into L-31 Rogue. 00377_ Destabilizing: System interference. 00377_ Signal Interpreter temporarily disabled. 00378_ Slammed into L-31 Rogue. Map ----- +----------------------------------------------------+ | ????????????????? """"????????????????? | | ????????????????? ????????????????? | | ????????????##### ???????????????? | | ????????????# ???????????????? | | ????????????# ???????????????? | | ?????????#??# ???????????????? | | ?????????# ?# #### ???????????????? | | ?????????# ## #??????????????????????? | | ?????????+ #??????????????????????? | | ?????????# #??????????????????????? | | ?????????# #??????????????????????? | | ?????????# """ """ #??????????????????????? | | ????????## """ """ #??????????????????????? | | ????????# """ """ #??????????????????????? | | ????????# #??????????????????????? | | ????????# #??????????????????????? | | ????????# [ #??????????????????????? | | ????????########### ##??????????????????????? | | ????????# ???????# #???????????????????????? | | ????????# ?????# ]#???????????????????????? | | ????????# ????# #???????????????????????? | | ????????# ?##g ##??????????????????????? | | ????????# ]] # g #??????????????????????? | | ????????# ][ /l s #??????????????????????? | | ????????# = ] #% #??????????????????????? | | ????????# ??? # s@#??????????????????????? | | ????????#?????? ?##ws##??????????????????????? | | ??????????????#???#w ???????????????????????? | | ??????????????????# ???????????????????????? | | ??????????????????# ??????????????????????? | | ??????????????????# ##??????????????????????? | | ??????????????????# #???????????????????????? | | ??????????????????# #???????????????????????? | | ??????????????????/ +???????????????????????? | | ??????????????????# #???????????????????????? | | ??????????????????# #???????????????????????? | | ?????????????????? ????????????????????????? | | ?????????????????? ????????????????????????? | | ?????????????????? ????????????????????????? | | ?????????????????? ????????????????????????? | | ?????????????????????????????????????????????? | | ?????????????????????????????????????????????? | | ?????????????????????????????????????????????? | | ?????????????????????????????????????????????? | | ?????????????????????????????????????????????? | | ?????????????????????????????????????????????? | | ?????????????????????????????????????????????? | | ?????????????????????????????????????????????? | | ?????????????????????????????????????????????? | | ?????????????????????????????????????????????? | +----------------------------------------------------+ Best States ------------- Heat Dissipation 35 Energy Generation 10 Energy Capacity 125 Matter Stores 300 Matter Capacity 300 Sight Range 16 Robot Scan Range 14 Terrain Scan Density 10 Evasion (%) 50 Item Schematics ----------------- None Robot Schematics ------------------ None Fabricated ------------ Nothing Alien Tech Used ----------------- None Achievements -------------- None Challenges ------------ None Game ------ Seed MassExplosiveWartreads Manual? 0 Play Time 00:07:11 Cumulative 10.2 hours Start 2025.03.05 @ 22:36:23 End 2025.03.05 @ 22:43:24 Sessions 1 Manual Loads 0 Difficulty Rogue Special Mode None Game No. 23 Rogue 23 Adventurer 0 Explorer 0 Win Type - Total 0 Types 0/0/0/0/0/0/0/0/0 Lore% 8 Gallery% 15 Achievement% 16 Wizard Run 0 Options --------- Layout 2 ASCII 0 Keyboard 0 Movement Mouse Keybinds 1 Fullscreen 2 Font 32/Smallcaps Map View 50x44 Zoom Use 0% Tactical HUD 1 Map Filters NONE Filters NONE Steam 1 RUN: bc45c7fc-f4d1-4518-b2e9-00108f6be3bf